{"text_format":"1","workbook":"xlsx","n_sheets":5,"sheets":["tableau","trame","Ligues","Danses","Clubs"],"not_rendered":{"charts":0,"images":4,"macros":1,"external_links":2,"defined_names":9,"comments":1,"pivot_tables":0},"unopened":[],"bounds":{"document_bytes":16777216,"sheet_cells":100000,"rows_first":2000,"rows_last":500,"rows_between":2000,"halvings":0,"cell_chars":16384,"cell_head_chars":4096},"cells_cut":0,"cells_raw":0,"read":"whole","date_system":"1900"}

{"sheet":"tableau","index":0,"n_rows":39,"n_cols":6,"rows_kept":39,"cut":false,"hidden":false,"merged":[[1,2,3,5]]}
[]
[null,null," CATEGORIE BRONZE"]
[]
["Création onglet"]
[]
["NOM","PRENOM","DATE DE NAISSANCE","CLUB","TEST","N° DE LICENCE"]
["BIZET","Margot","2003-06-25","FRANCONVILLE","Préliminaire"]
["BROSSARD","Suzie","2003-07-04","VIRY","Préliminaire"]
["CAILLON","Emma","2004-08-09","FRANCONVILLE","Préliminaire"]
["DEBORD","Louna","2005-11-05","ORLEANS","Préliminaire"]
["DUPREY","Léa","2001-11-06","FRANCONVILLE","Préliminaire"]
["LABRO","Romane","2004-10-24","CERGY","Préliminaire"]
["RICQUEBOURG","Pauline","2002-11-21","WASQUEHAL","Préliminaire"]
["RICQUEBOURG","Manon","2005-09-07","WASQUEHAL","Préliminaire"]
["SCHOONHEERE","Léa","2006-02-16","CERGY","Préliminaire"]
["AHAMADA","Lenah","2005-03-04","VIRY","Préliminaire"]
["BANUVONG","Julie ","2001-03-29","VITRY","Préliminaire"]
["BOUILLET","Dorianne","2004-09-08","MEUDON","Préliminaire"]
["DA CUNHA","Helena","2004-12-04","FONTENAY","Préliminaire"]
["JARDAT","Anastasia","2006-11-24","VITRY","Préliminaire"]
["MATHIEU","Faustine","2004-10-22","FONTENAY","Préliminaire"]
["NABAIS","Léane","2004-10-22","VITRY","Préliminaire"]
["SZNAJDER","Diane","2006-08-18","VITRY","Préliminaire"]
["GRUNDRICK","Adèle","2005-05-21","CERGY","Préliminaire"]
["HELIOT","Alexia","2003-07-18","VIRY","Préliminaire"]
["LEBRUN","Marianna","2004-03-03","VIRY","Préliminaire"]
["MONNIER","Kevin","2002-08-06","VITRY","Préliminaire"]
["TADDET-DUGUE","Tahory ","2007-05-13","VITRY","Préliminaire"]
["YILMAZ","Camelia","2003-08-13","VIRY","Préliminaire"]
["DUBRULLE","Kalista","2006-01-20","WASQUEHAL","Préliminaire"]
["VANDESTOKE","Cyrille","2001-11-19","WASQUEHAL","Préliminaire"]
["FREIXO","Lisa","2001-06-25","FRANCONVILLE","Préliminaire"]
["GAULTIER","Anastasia","2004-11-14","MEUDON","Préliminaire"]
["GOBARD","Anne-Claire","1979-10-26","FRANCONVILLE","Préliminaire"]
["POLINYCE","Amel","2006-03-24","MEUDON","Préliminaire"]
["BECCARRI--NAGAMATSU","Maya","2005-06-09","VITRY","Préliminaire"]
["DUBRULLE","Kalista","2006-01-20","WASQUEHAL","Préliminaire"]
["GOBARD","Anne-Claire","1979-10-26","FRANCONVILLE","Préliminaire"]
["POLINYCE","Amel","2006-03-24","MEUDON","Préliminaire"]

{"sheet":"trame","index":1,"n_rows":87,"n_cols":22,"rows_kept":87,"cut":false,"hidden":false,"merged":[[9,8,10,8],[10,0,10,1],[10,2,10,3],[1,0,1,4],[1,5,2,5],[1,6,2,8],[2,0,2,4],[3,6,3,8],[10,5,10,7],[4,0,4,1],[4,2,4,7],[5,0,5,1],[5,2,5,3],[5,5,5,7],[6,0,6,2],[6,3,7,4],[7,0,7,2],[7,5,8,5],[7,6,8,6],[7,7,8,7],[11,0,11,1],[11,2,11,3],[12,0,12,1],[12,2,12,3],[13,0,13,1],[13,2,13,3],[8,0,8,2],[8,3,8,4],[9,1,9,7],[18,0,18,1],[18,2,18,3],[19,0,19,1],[19,2,19,3],[20,0,20,1],[20,2,20,3],[14,1,14,3],[16,1,16,7],[16,8,17,8],[17,0,17,1],[17,2,17,3],[17,5,17,7],[23,8,24,8],[24,0,24,1],[24,2,24,3],[24,5,24,7],[25,0,25,1],[25,2,25,3],[21,1,21,3],[22,0,22,1],[22,2,22,3],[22,5,22,7],[23,1,23,7],[30,8,31,8],[31,0,31,1],[31,2,31,3],[31,5,31,7],[26,0,26,1],[26,2,26,3],[27,0,27,1],[27,2,27,3],[28,1,28,3],[32,0,32,1],[32,2,32,3],[33,0,33,1],[33,2,33,3],[34,0,34,1],[34,2,34,3],[29,0,29,1],[29,2,29,3],[29,5,29,7],[30,1,30,7],[37,8,38,8],[38,0,38,1],[38,2,38,3],[38,5,38,7],[39,0,39,1],[39,2,39,3],[35,1,35,3],[36,0,36,1],[36,2,36,3],[36,5,36,7],[37,1,37,7],[43,0,43,1],[43,2,43,3],[43,5,43,7],[44,1,44,7],[44,8,45,8],[45,0,45,1],[45,2,45,3],[45,5,45,7],[40,0,40,1],[40,2,40,3],[41,0,41,1],[41,2,41,3],[42,1,42,3],[51,8,52,8],[52,0,52,1],[52,2,52,3],[52,5,52,7],[53,0,53,1],[53,2,53,3],[46,0,46,1],[46,2,46,3],[47,0,47,1],[47,2,47,3],[48,0,48,1],[48,2,48,3],[49,1,49,3],[50,0,50,1],[50,2,50,3],[50,5,50,7],[51,1,51,7],[66,0,66,4],[67,0,67,4],[68,0,68,4],[69,0,69,4],[54,0,54,1],[54,2,54,3],[55,0,55,1],[55,2,55,3],[56,1,56,3],[57,0,57,1],[57,2,57,3],[62,0,62,1],[62,2,62,3],[63,1,63,3],[57,5,57,7],[58,1,58,7],[58,8,59,8],[59,0,59,1],[59,2,59,3],[59,5,59,7],[60,0,60,1],[60,2,60,3],[61,0,61,1],[61,2,61,3]]}
[]
["Fédération Française des Sports de Glace",null,null,null,null,null,"RAPPORT DE TESTS FEDERAUX\n"]
["Commission Sportive Nationale de Danse sur Glace"]
[null,null,null,null,null,null,"version du 01/12/2014"]
["Club organisateur :"]
["ou Ligue organisatrice :",null,null,null,"et Ville :"]
["Président du Jury\nNom et prénom",null,null,"Date",null,"Nom du juge\nn° 1","Nom du juge\nn° 2","Nom du juge\nn° 3"]
[]
["Signature",null,null,null,null,null,null,null,"Résultat\nFINAL\nOUI - NON"]
["TEST",null,null,null,null,null,null,null,"Résultat final",null,null,null,null,null,null,null,null,null,null,{"$f":"B10","v":0}]
["NOM",null,"PRENOM",null,"DANSE","Résultat par danse et par juge (oui / non)"]
[null,null,null,null,{"$f":"IF(ISNA(HLOOKUP(B10,Danses!$A$1:$AB$5,2,FALSE)),\"\",(HLOOKUP(B10,Danses!$A$1:$AB$5,2,FALSE)))","v":""},null,null,null,null,null,null,null,null,null,null,null,null,null,null,{"$f":"HLOOKUP($T$10,#REF!,2,FALSE)","v":{"$error":"#REF!"}},{"$f":"IFERROR(VLOOKUP(E12,$T$12:$T$15,1,FALSE),\"bad\")","v":"bad"}]
["N° DE LICENCE",null,"DATE DE NAISSANCE",null,{"$f":"IF(ISNA(HLOOKUP(B10,Danses!$A$1:$AB$5,3,FALSE)),\"\",(HLOOKUP(B10,Danses!$A$1:$AB$5,3,FALSE)))","v":""},null,null,null,null,null,null,null,null,null,null,null,null,null,null,{"$f":"HLOOKUP($T$10,#REF!,3,FALSE)","v":{"$error":"#REF!"}},{"$f":"IFERROR(VLOOKUP(E13,$T$12:$T$15,1,FALSE),\"bad\")","v":"bad"}]
[null,null,null,null,{"$f":"IF(ISNA(HLOOKUP(B10,Danses!$A$1:$AB$5,4,FALSE)),\"\",(HLOOKUP(B10,Danses!$A$1:$AB$5,4,FALSE)))","v":""},null,null,null,null,null,null,null,null,null,null,null,null,null,null,{"$f":"HLOOKUP($T$10,#REF!,4,FALSE)","v":{"$error":"#REF!"}},{"$f":"IFERROR(VLOOKUP(E14,$T$12:$T$15,1,FALSE),\"bad\")","v":"bad"}]
["CLUB",null,null,null,{"$f":"IF(ISNA(HLOOKUP(B10,Danses!$A$1:$AB$5,5,FALSE)),\"\",(HLOOKUP(B10,Danses!$A$1:$AB$5,5,FALSE)))","v":""},null,null,null,null,null,null,null,null,null,null,null,null,null,null,{"$f":"HLOOKUP($T$10,#REF!,5,FALSE)","v":{"$error":"#REF!"}},{"$f":"IFERROR(VLOOKUP(E15,$T$12:$T$15,1,FALSE),\"bad\")","v":"bad"}]
[]
["TEST",null,null,null,null,null,null,null,"Résultat final",null,null,null,null,null,null,null,null,null,null,{"$f":"B17","v":0}]
["NOM",null,"PRENOM",null,"DANSE","Résultat par danse et par juge (oui / non)"]
[null,null,null,null,{"$f":"IF(ISNA(HLOOKUP(B17,Danses!$A$1:$AB$5,2,FALSE)),\"\",(HLOOKUP(B17,Danses!$A$1:$AB$5,2,FALSE)))","v":""},null,null,null,null,null,null,null,null,null,null,null,null,null,null,{"$f":"HLOOKUP($T$10,#REF!,2,FALSE)","v":{"$error":"#REF!"}},{"$f":"IFERROR(VLOOKUP(E19,$T$12:$T$15,1,FALSE),\"bad\")","v":"bad"}]
["N° DE LICENCE",null,"DATE DE NAISSANCE",null,{"$f":"IF(ISNA(HLOOKUP(B17,Danses!$A$1:$AB$5,3,FALSE)),\"\",(HLOOKUP(B17,Danses!$A$1:$AB$5,3,FALSE)))","v":""},null,null,null,null,null,null,null,null,null,null,null,null,null,null,{"$f":"HLOOKUP($T$10,#REF!,3,FALSE)","v":{"$error":"#REF!"}},{"$f":"IFERROR(VLOOKUP(E20,$T$12:$T$15,1,FALSE),\"bad\")","v":"bad"}]
[null,null,null,null,{"$f":"IF(ISNA(HLOOKUP(B17,Danses!$A$1:$AB$5,4,FALSE)),\"\",(HLOOKUP(B17,Danses!$A$1:$AB$5,4,FALSE)))","v":""},null,null,null,null,null,null,null,null,null,null,null,null,null,null,{"$f":"HLOOKUP($T$10,#REF!,4,FALSE)","v":{"$error":"#REF!"}},{"$f":"IFERROR(VLOOKUP(E21,$T$12:$T$15,1,FALSE),\"bad\")","v":"bad"}]
["CLUB",null,null,null,{"$f":"IF(ISNA(HLOOKUP(B17,Danses!$A$1:$AB$5,5,FALSE)),\"\",(HLOOKUP(B17,Danses!$A$1:$AB$5,5,FALSE)))","v":""},null,null,null,null,null,null,null,null,null,null,null,null,null,null,{"$f":"HLOOKUP($T$10,#REF!,5,FALSE)","v":{"$error":"#REF!"}},{"$f":"IFERROR(VLOOKUP(E22,$T$12:$T$15,1,FALSE),\"bad\")","v":"bad"}]
[]
["TEST",null,null,null,null,null,null,null,"Résultat final",null,null,null,null,null,null,null,null,null,null,{"$f":"B24","v":0}]
["NOM",null,"PRENOM",null,"DANSE","Résultat par danse et par juge (oui / non)"]
[null,null,null,null,{"$f":"IF(ISNA(HLOOKUP(B24,Danses!$A$1:$AB$5,2,FALSE)),\"\",(HLOOKUP(B24,Danses!$A$1:$AB$5,2,FALSE)))","v":""},null,null,null,null,null,null,null,null,null,null,null,null,null,null,{"$f":"HLOOKUP($T$10,#REF!,2,FALSE)","v":{"$error":"#REF!"}},{"$f":"IFERROR(VLOOKUP(E26,$T$12:$T$15,1,FALSE),\"bad\")","v":"bad"}]
["N° DE LICENCE",null,"DATE DE NAISSANCE",null,{"$f":"IF(ISNA(HLOOKUP(B24,Danses!$A$1:$AB$5,3,FALSE)),\"\",(HLOOKUP(B24,Danses!$A$1:$AB$5,3,FALSE)))","v":""},null,null,null,null,null,null,null,null,null,null,null,null,null,null,{"$f":"HLOOKUP($T$10,#REF!,3,FALSE)","v":{"$error":"#REF!"}},{"$f":"IFERROR(VLOOKUP(E27,$T$12:$T$15,1,FALSE),\"bad\")","v":"bad"}]
[null,null,null,null,{"$f":"IF(ISNA(HLOOKUP(B24,Danses!$A$1:$AB$5,4,FALSE)),\"\",(HLOOKUP(B24,Danses!$A$1:$AB$5,4,FALSE)))","v":""},null,null,null,null,null,null,null,null,null,null,null,null,null,null,{"$f":"HLOOKUP($T$10,#REF!,4,FALSE)","v":{"$error":"#REF!"}},{"$f":"IFERROR(VLOOKUP(E28,$T$12:$T$15,1,FALSE),\"bad\")","v":"bad"}]
["CLUB",null,null,null,{"$f":"IF(ISNA(HLOOKUP(B24,Danses!$A$1:$AB$5,5,FALSE)),\"\",(HLOOKUP(B24,Danses!$A$1:$AB$5,5,FALSE)))","v":""},null,null,null,null,null,null,null,null,null,null,null,null,null,null,{"$f":"HLOOKUP($T$10,#REF!,5,FALSE)","v":{"$error":"#REF!"}},{"$f":"IFERROR(VLOOKUP(E29,$T$12:$T$15,1,FALSE),\"bad\")","v":"bad"}]
[]
["TEST",null,null,null,null,null,null,null,"Résultat final",null,null,null,null,null,null,null,null,null,null,{"$f":"B31","v":0}]
["NOM",null,"PRENOM",null,"DANSE","Résultat par danse et par juge (oui / non)"]
[null,null,null,null,{"$f":"IF(ISNA(HLOOKUP(B31,Danses!$A$1:$AB$5,2,FALSE)),\"\",(HLOOKUP(B31,Danses!$A$1:$AB$5,2,FALSE)))","v":""},null,null,null,null,null,null,null,null,null,null,null,null,null,null,{"$f":"HLOOKUP($T$10,#REF!,2,FALSE)","v":{"$error":"#REF!"}},{"$f":"IFERROR(VLOOKUP(E33,$T$12:$T$15,1,FALSE),\"bad\")","v":"bad"}]
["N° DE LICENCE",null,"DATE DE NAISSANCE",null,{"$f":"IF(ISNA(HLOOKUP(B31,Danses!$A$1:$AB$5,3,FALSE)),\"\",(HLOOKUP(B31,Danses!$A$1:$AB$5,3,FALSE)))","v":""},null,null,null,null,null,null,null,null,null,null,null,null,null,null,{"$f":"HLOOKUP($T$10,#REF!,3,FALSE)","v":{"$error":"#REF!"}},{"$f":"IFERROR(VLOOKUP(E34,$T$12:$T$15,1,FALSE),\"bad\")","v":"bad"}]
[null,null,null,null,{"$f":"IF(ISNA(HLOOKUP(B31,Danses!$A$1:$AB$5,4,FALSE)),\"\",(HLOOKUP(B31,Danses!$A$1:$AB$5,4,FALSE)))","v":""},null,null,null,null,null,null,null,null,null,null,null,null,null,null,{"$f":"HLOOKUP($T$10,#REF!,4,FALSE)","v":{"$error":"#REF!"}},{"$f":"IFERROR(VLOOKUP(E35,$T$12:$T$15,1,FALSE),\"bad\")","v":"bad"}]
["CLUB",null,null,null,{"$f":"IF(ISNA(HLOOKUP(B31,Danses!$A$1:$AB$5,5,FALSE)),\"\",(HLOOKUP(B31,Danses!$A$1:$AB$5,5,FALSE)))","v":""},null,null,null,null,null,null,null,null,null,null,null,null,null,null,{"$f":"HLOOKUP($T$10,#REF!,5,FALSE)","v":{"$error":"#REF!"}},{"$f":"IFERROR(VLOOKUP(E36,$T$12:$T$15,1,FALSE),\"bad\")","v":"bad"}]
[]
["TEST",null,null,null,null,null,null,null,"Résultat final",null,null,null,null,null,null,null,null,null,null,{"$f":"B38","v":0}]
["NOM",null,"PRENOM",null,"DANSE","Résultat par danse et par juge (oui / non)"]
[null,null,null,null,{"$f":"IF(ISNA(HLOOKUP(B38,Danses!$A$1:$AB$5,2,FALSE)),\"\",(HLOOKUP(B38,Danses!$A$1:$AB$5,2,FALSE)))","v":""},null,null,null,null,null,null,null,null,null,null,null,null,null,null,{"$f":"HLOOKUP($T$10,#REF!,2,FALSE)","v":{"$error":"#REF!"}},{"$f":"IFERROR(VLOOKUP(E40,$T$12:$T$15,1,FALSE),\"bad\")","v":"bad"}]
["N° DE LICENCE",null,"DATE DE NAISSANCE",null,{"$f":"IF(ISNA(HLOOKUP(B38,Danses!$A$1:$AB$5,3,FALSE)),\"\",(HLOOKUP(B38,Danses!$A$1:$AB$5,3,FALSE)))","v":""},null,null,null,null,null,null,null,null,null,null,null,null,null,null,{"$f":"HLOOKUP($T$10,#REF!,3,FALSE)","v":{"$error":"#REF!"}},{"$f":"IFERROR(VLOOKUP(E41,$T$12:$T$15,1,FALSE),\"bad\")","v":"bad"}]
[null,null,null,null,{"$f":"IF(ISNA(HLOOKUP(B38,Danses!$A$1:$AB$5,4,FALSE)),\"\",(HLOOKUP(B38,Danses!$A$1:$AB$5,4,FALSE)))","v":""},null,null,null,null,null,null,null,null,null,null,null,null,null,null,{"$f":"HLOOKUP($T$10,#REF!,4,FALSE)","v":{"$error":"#REF!"}},{"$f":"IFERROR(VLOOKUP(E42,$T$12:$T$15,1,FALSE),\"bad\")","v":"bad"}]
["CLUB",null,null,null,{"$f":"IF(ISNA(HLOOKUP(B38,Danses!$A$1:$AB$5,5,FALSE)),\"\",(HLOOKUP(B38,Danses!$A$1:$AB$5,5,FALSE)))","v":""},null,null,null,null,null,null,null,null,null,null,null,null,null,null,{"$f":"HLOOKUP($T$10,#REF!,5,FALSE)","v":{"$error":"#REF!"}},{"$f":"IFERROR(VLOOKUP(E43,$T$12:$T$15,1,FALSE),\"bad\")","v":"bad"}]
[]
["TEST",null,null,null,null,null,null,null,"Résultat final",null,null,null,null,null,null,null,null,null,null,{"$f":"B45","v":0}]
["NOM",null,"PRENOM",null,"DANSE","Résultat par danse et par juge (oui / non)"]
[null,null,null,null,{"$f":"IF(ISNA(HLOOKUP(B45,Danses!$A$1:$AB$5,2,FALSE)),\"\",(HLOOKUP(B45,Danses!$A$1:$AB$5,2,FALSE)))","v":""},null,null,null,null,null,null,null,null,null,null,null,null,null,null,{"$f":"HLOOKUP($T$10,#REF!,2,FALSE)","v":{"$error":"#REF!"}},{"$f":"IFERROR(VLOOKUP(E47,$T$12:$T$15,1,FALSE),\"bad\")","v":"bad"}]
["N° DE LICENCE",null,"DATE DE NAISSANCE",null,{"$f":"IF(ISNA(HLOOKUP(B45,Danses!$A$1:$AB$5,3,FALSE)),\"\",(HLOOKUP(B45,Danses!$A$1:$AB$5,3,FALSE)))","v":""},null,null,null,null,null,null,null,null,null,null,null,null,null,null,{"$f":"HLOOKUP($T$10,#REF!,3,FALSE)","v":{"$error":"#REF!"}},{"$f":"IFERROR(VLOOKUP(E48,$T$12:$T$15,1,FALSE),\"bad\")","v":"bad"}]
[null,null,null,null,{"$f":"IF(ISNA(HLOOKUP(B45,Danses!$A$1:$AB$5,4,FALSE)),\"\",(HLOOKUP(B45,Danses!$A$1:$AB$5,4,FALSE)))","v":""},null,null,null,null,null,null,null,null,null,null,null,null,null,null,{"$f":"HLOOKUP($T$10,#REF!,4,FALSE)","v":{"$error":"#REF!"}},{"$f":"IFERROR(VLOOKUP(E49,$T$12:$T$15,1,FALSE),\"bad\")","v":"bad"}]
["CLUB",null,null,null,{"$f":"IF(ISNA(HLOOKUP(B45,Danses!$A$1:$AB$5,5,FALSE)),\"\",(HLOOKUP(B45,Danses!$A$1:$AB$5,5,FALSE)))","v":""},null,null,null,null,null,null,null,null,null,null,null,null,null,null,{"$f":"HLOOKUP($T$10,#REF!,5,FALSE)","v":{"$error":"#REF!"}},{"$f":"IFERROR(VLOOKUP(E50,$T$12:$T$15,1,FALSE),\"bad\")","v":"bad"}]
[]
["TEST",null,null,null,null,null,null,null,"Résultat final",null,null,null,null,null,null,null,null,null,null,{"$f":"B52","v":0}]
["NOM",null,"PRENOM",null,"DANSE","Résultat par danse et par juge (oui / non)"]
[null,null,null,null,{"$f":"IF(ISNA(HLOOKUP(B52,Danses!$A$1:$AB$5,2,FALSE)),\"\",(HLOOKUP(B52,Danses!$A$1:$AB$5,2,FALSE)))","v":""},null,null,null,null,null,null,null,null,null,null,null,null,null,null,{"$f":"HLOOKUP($T$10,#REF!,2,FALSE)","v":{"$error":"#REF!"}},{"$f":"IFERROR(VLOOKUP(E54,$T$12:$T$15,1,FALSE),\"bad\")","v":"bad"}]
["N° DE LICENCE",null,"DATE DE NAISSANCE",null,{"$f":"IF(ISNA(HLOOKUP(B52,Danses!$A$1:$AB$5,3,FALSE)),\"\",(HLOOKUP(B52,Danses!$A$1:$AB$5,3,FALSE)))","v":""},null,null,null,null,null,null,null,null,null,null,null,null,null,null,{"$f":"HLOOKUP($T$10,#REF!,3,FALSE)","v":{"$error":"#REF!"}},{"$f":"IFERROR(VLOOKUP(E55,$T$12:$T$15,1,FALSE),\"bad\")","v":"bad"}]
[null,null,null,null,{"$f":"IF(ISNA(HLOOKUP(B52,Danses!$A$1:$AB$5,4,FALSE)),\"\",(HLOOKUP(B52,Danses!$A$1:$AB$5,4,FALSE)))","v":""},null,null,null,null,null,null,null,null,null,null,null,null,null,null,{"$f":"HLOOKUP($T$10,#REF!,4,FALSE)","v":{"$error":"#REF!"}},{"$f":"IFERROR(VLOOKUP(E56,$T$12:$T$15,1,FALSE),\"bad\")","v":"bad"}]
["CLUB",null,null,null,{"$f":"IF(ISNA(HLOOKUP(B52,Danses!$A$1:$AB$5,5,FALSE)),\"\",(HLOOKUP(B52,Danses!$A$1:$AB$5,5,FALSE)))","v":""},null,null,null,null,null,null,null,null,null,null,null,null,null,null,{"$f":"HLOOKUP($T$10,#REF!,5,FALSE)","v":{"$error":"#REF!"}},{"$f":"IFERROR(VLOOKUP(E57,$T$12:$T$15,1,FALSE),\"bad\")","v":"bad"}]
[]
["TEST",null,null,null,null,null,null,null,"Résultat final",null,null,null,null,null,null,null,null,null,null,{"$f":"B59","v":0}]
["NOM",null,"PRENOM",null,"DANSE","Résultat par danse et par juge (oui / non)"]
[null,null,null,null,{"$f":"IF(ISNA(HLOOKUP(B59,Danses!$A$1:$AB$5,2,FALSE)),\"\",(HLOOKUP(B59,Danses!$A$1:$AB$5,2,FALSE)))","v":""},null,null,null,null,null,null,null,null,null,null,null,null,null,null,{"$f":"HLOOKUP($T$10,#REF!,2,FALSE)","v":{"$error":"#REF!"}},{"$f":"IFERROR(VLOOKUP(E61,$T$12:$T$15,1,FALSE),\"bad\")","v":"bad"}]
["N° DE LICENCE",null,"DATE DE NAISSANCE",null,{"$f":"IF(ISNA(HLOOKUP(B59,Danses!$A$1:$AB$5,3,FALSE)),\"\",(HLOOKUP(B59,Danses!$A$1:$AB$5,3,FALSE)))","v":""},null,null,null,null,null,null,null,null,null,null,null,null,null,null,{"$f":"HLOOKUP($T$10,#REF!,3,FALSE)","v":{"$error":"#REF!"}},{"$f":"IFERROR(VLOOKUP(E62,$T$12:$T$15,1,FALSE),\"bad\")","v":"bad"}]
[null,null,null,null,{"$f":"IF(ISNA(HLOOKUP(B59,Danses!$A$1:$AB$5,4,FALSE)),\"\",(HLOOKUP(B59,Danses!$A$1:$AB$5,4,FALSE)))","v":""},null,null,null,null,null,null,null,null,null,null,null,null,null,null,{"$f":"HLOOKUP($T$10,#REF!,4,FALSE)","v":{"$error":"#REF!"}},{"$f":"IFERROR(VLOOKUP(E63,$T$12:$T$15,1,FALSE),\"bad\")","v":"bad"}]
["CLUB",null,null,null,{"$f":"IF(ISNA(HLOOKUP(B59,Danses!$A$1:$AB$5,5,FALSE)),\"\",(HLOOKUP(B59,Danses!$A$1:$AB$5,5,FALSE)))","v":""},null,null,null,null,null,null,null,null,null,null,null,null,null,null,{"$f":"HLOOKUP($T$10,#REF!,5,FALSE)","v":{"$error":"#REF!"}},{"$f":"IFERROR(VLOOKUP(E64,$T$12:$T$15,1,FALSE),\"bad\")","v":"bad"}]
[]
[]
["Destinataires",null,null,null,null,"Signature\ndu Juge","Signature\ndu Juge","Signature\ndu Juge"]
["original à M. COSNUAU Loïc 20, avenue de Tarente 29200 BREST"]
["photocopie conservée par le club organisateur"]
["photocopie envoyée au secrétariat du Comité Danse sur Glace de la Ligue"]
[null,null,null,null,null,null,null,null,null,null,null,null,null,null,null,null,null,null,null,null,null,{"$f":"Test_1","v":{"$error":"#NAME?"}}]
[]
[null,null,null,null,null,null,null,null,null,null,null,null,null,null,null,null,null,null,null,null,null,{"$f":"HLOOKUP(Test_1,#REF!,Num,FALSE)","v":{"$error":"#NAME?"}}]
[null,null,null,null,null,null,null,null,null,null,null,null,null,null,null,null,null,null,null,null,null,{"$f":"HLOOKUP(Test_1,#REF!,Num,FALSE)","v":{"$error":"#NAME?"}}]
[null,null,null,null,null,null,null,null,null,null,null,null,null,null,null,null,null,null,null,null,null,{"$f":"HLOOKUP(Test_1,#REF!,Num,FALSE)","v":{"$error":"#NAME?"}}]
[null,null,null,null,null,null,null,null,null,null,null,null,null,null,null,null,null,null,null,null,null,{"$f":"HLOOKUP(Test_1,#REF!,Num,FALSE)","v":{"$error":"#NAME?"}}]
[null,null,null,null,null,null,null,null,null,null,null,null,null,null,null,null,null,null,null,null,null,{"$f":"HLOOKUP(Test_1,#REF!,Num,FALSE)","v":{"$error":"#NAME?"}}]
[]
[]
[]
[null,null,null,null,null,null,null,null,null,null,null,null,null,null,null,null,null,null,null,null,null,{"$f":"Test_2","v":{"$error":"#NAME?"}}]
[]
[null,null,null,null,null,null,null,null,null,null,null,null,null,null,null,null,null,null,null,null,null,{"$f":"HLOOKUP(Test_2,#REF!,Num,FALSE)","v":{"$error":"#NAME?"}}]
[null,null,null,null,null,null,null,null,null,null,null,null,null,null,null,null,null,null,null,null,null,{"$f":"HLOOKUP(Test_2,#REF!,Num,FALSE)","v":{"$error":"#NAME?"}}]
[null,null,null,null,null,null,null,null,null,null,null,null,null,null,null,null,null,null,null,null,null,{"$f":"HLOOKUP(Test_2,#REF!,Num,FALSE)","v":{"$error":"#NAME?"}}]
[null,null,null,null,null,null,null,null,null,null,null,null,null,null,null,null,null,null,null,null,null,{"$f":"HLOOKUP(Test_2,#REF!,Num,FALSE)","v":{"$error":"#NAME?"}}]
[null,null,null,null,null,null,null,null,null,null,null,null,null,null,null,null,null,null,null,null,null,{"$f":"HLOOKUP(Test_2,#REF!,Num,FALSE)","v":{"$error":"#NAME?"}}]

{"sheet":"Ligues","index":2,"n_rows":25,"n_cols":1,"rows_kept":25,"cut":false,"hidden":false,"merged":[]}
["Ligues"]
[]
["01 - ALSACE"]
["02 - AQUITAINE"]
["03 - AUVERGNE"]
["04 - BOURGOGNE"]
["05 - BRETAGNE"]
["06 - CENTRE"]
["07 - CHAMPAGNE ARDENNE"]
["08 - CORSE"]
["09 - FRANCHE COMTE"]
["10 - ILE DE France"]
["11 - LANGUEDOC ROUSILLON"]
["12 - LIMOUSIN"]
["13 - LORRAINE"]
["14 - MIDI PYRENEES"]
["15 - NORD PAS DE CALAIS"]
["16 - BASSE NORMANDIE"]
["17 - HAUTE NORMANDIE"]
["18 - PAYS DE LA LOIRE"]
["19 - PICARDIE"]
["20 - POITOU CHARENTES"]
["21 - PACA"]
["22 - RHONE ALPES"]
["23 - ST PIERRE ET MIQUELON"]

{"sheet":"Danses","index":3,"n_rows":5,"n_cols":28,"rows_kept":5,"cut":false,"hidden":false,"merged":[]}
[null,"Préliminaire","Préliminaire Major","Préparatoire","Préparatoire Major","Pré-bronze Standard de Danses Imposées","Pré-bronze Major de Danses Imposées","Pré-bronze Solo de Danses Imposées","Pré-bronze Major Solo de Danses Imposées","Bronze Standard de Danses Imposées","Bronze  Major de Danses Imposées","Bronze Solo de Danses Imposées","Bronze Major Solo de Danses Imposées","Argent Standard de Danses Imposées","Argent Major de Danses Imposées","Argent Solo de Danses Imposées","Argent Major Solo de Danses Imposées","Vermeil Standardde Danses Imposées","Vermeil Major de Danses Imposées","Vermeil Solo de Danses Imposées","Vermeil Major Solo de Danses Imposées","Petit or Standard de Danses Imposées","Petit or Major de Danses Imposées","Petit or Solo de Danses Imposées","Petit or Major Solo de Danses Imposées","Or Standard de Danses Imposées","Or Major de Danses Imposées","Platine de Danses Imposées"]
[null,"Canasta Tango","Canasta Tango","Danse Majeure","Danse Majeure","Ten Fox","Ten Fox","Ten Fox","Ten Fox","Pas de Quatorze","Pas de Quatorze","Pas de Quatorze","Pas de Quatorze","Rocker Foxtrot","Rocker Foxtrot","Rocker Foxtrot","Rocker Foxtrot","Valse Starlight","Valse Starlight","Valse Starlight","Valse Starlight","Valse Viennoise","Valse Viennoise","Valse Viennoise","Valse Viennoise","Valse Westminster","Valse Westminster","Valse Ravensburger"]
[null,null,null,null,null,"Valse Willow","Valse Willow","Valse Willow","Valse Willow","Fox Trot","Fox Trot","Fox Trot","Fox Trot","Valse Américaine","Valse Américaine","Valse Américaine","Valse Américaine","Paso Doble","Paso Doble","Paso Doble","Paso Doble","Quick Step","Quick Step","Quick Step","Quick Step","Valse Autrichienne","Valse Autrichienne","Valse d'Or"]
[null,null,null,null,null,"Tango Fiesta","Tango Fiesta","Tango Fiesta","Tango Fiesta","Valse Européenne","Valse Européenne","Valse Européenne","Valse Européenne","Kilian","Kilian","Kilian","Kilian","Blues","Blues","Blues","Blues","Cha Cha Congelado","Cha Cha Congelado","Cha Cha Congelado","Cha Cha Congelado","Rumba","Rumba","Yankee Polka"]
[null,null,null,null,null,null,null,null,null,null,null,null,null,"Tango","Tango","Tango","Tango",null,null,null,null,"Silver Samba","Silver Samba","Silver Samba","Silver Samba","Tango Argentin","Tango Argentin","Tango Romantica"]

{"sheet":"Clubs","index":4,"n_rows":151,"n_cols":6,"rows_kept":151,"cut":false,"hidden":false,"merged":[]}
["Clubs"]
[null,null,"abréviation","ville","nom","n° affiliation"]
[{"$f":"CONCATENATE(D3,\" - \",C3,\" - \",E3,\" - \",F3)","v":"ALBERTVILLE - ALB - ALBERTVILLE OGC - 73002"},null,"ALB","ALBERTVILLE","ALBERTVILLE OGC",73002]
["ALES - ALE - ALES SPORTS DE GLACE - 30004",null,"ALE","ALES","ALES SPORTS DE GLACE",30004]
["ALPE D'HUEZ - ALH - ALPE D'HUEZ PATINAGE CLUB - 38002",null,"ALH","ALPE D'HUEZ","ALPE D'HUEZ PATINAGE CLUB",38002]
["AMIENS - AMI - AMIENS PATINAGE CLUB - 80001",null,"AMI","AMIENS","AMIENS PATINAGE CLUB",80001]
["ANGERS - AGA - ASGA ARTISTIQUE ET SYNCHRONISE - 49002",null,"AGA","ANGERS","ASGA ARTISTIQUE ET SYNCHRONISE",49002]
["ANGERS - AGD - ASSOCIATION SG ANGERS DANSE - 49004",null,"AGD","ANGERS","ASSOCIATION SG ANGERS DANSE",49004]
["ANGERS - ANG - ASG ANGERS - 49001",null,"ANG","ANGERS","ASG ANGERS",49001]
["ANGLET - ANT - ANGLET SPORTS DE GLACE - 64001",null,"ANT","ANGLET","ANGLET SPORTS DE GLACE",64001]
["ANGOULEME - AGO - ANGOULEME SPORTS DE GLACE - 16004",null,"AGO","ANGOULEME","ANGOULEME SPORTS DE GLACE",16004]
["ANNECY - ANN - ANNECY SPORT DE GLACE - 74007",null,"ANN","ANNECY","ANNECY SPORT DE GLACE",74007]
["ARGENTEUIL - ARG - ARGENTEUI SPORTS DE GLACE - 95006",null,"ARG","ARGENTEUIL","ARGENTEUI SPORTS DE GLACE",95006]
["ASNIERES SUR SEINE - ASN - ASNIERES PATINAGE - 92002",null,"ASN","ASNIERES SUR SEINE","ASNIERES PATINAGE",92002]
["ATHIS-MONS - ATH - ATHIS PARAY ICE DANCE - 91002",null,"ATH","ATHIS-MONS","ATHIS PARAY ICE DANCE",91002]
["AUBAGNE - ABG - ECOLE DE PATINAGE AUBAGNE - 13006",null,"ABG","AUBAGNE","ECOLE DE PATINAGE AUBAGNE",13006]
["AUBAGNE - AUB - SPORT OLYMPIQUE DE GLACE MARSEILLE AUBAGNE - 13002",null,"AUB","AUBAGNE","SPORT OLYMPIQUE DE GLACE MARSEILLE AUBAGNE",13002]
["AUXERRE - AUX - USAPI - 89002",null,"AUX","AUXERRE","USAPI",89002]
["AVIGNON - AVI - CLUB DES SPORTS DE GLACE D'AVIGNON - 84001",null,"AVI","AVIGNON","CLUB DES SPORTS DE GLACE D'AVIGNON",84001]
["AVIGNON - AVS - AVIGNON SPORTS DE GLACE - 84002",null,"AVS","AVIGNON","AVIGNON SPORTS DE GLACE",84002]
["BELFORT - BEL - BELFORT A.S.M - 90001",null,"BEL","BELFORT","BELFORT A.S.M",90001]
["BESANCON - ASB - ASSOCIATION SPORTS DE GLACE BESANCON - 25002",null,"ASB","BESANCON","ASSOCIATION SPORTS DE GLACE BESANCON",25002]
["BESANCON - BAP - BESANCON ASS PATINAGE ARTISTIQUE - 25003",null,"BAP","BESANCON","BESANCON ASS PATINAGE ARTISTIQUE",25003]
["BESANCON - BES - BESANCON SKATING CLUB - 25001",null,"BES","BESANCON","BESANCON SKATING CLUB",25001]
["BESSE SAINT ANASTAISE - BSA - SUPER BESSE CLUB DE PATINAGE - 63001",null,"BSA","BESSE SAINT ANASTAISE","SUPER BESSE CLUB DE PATINAGE",63001]
["BETHUNE - BET - BETHUNE BEFFY PATINAGE CLUB - 62001",null,"BET","BETHUNE","BETHUNE BEFFY PATINAGE CLUB",62001]
["BLAGNAC - BLA - BLAGNAC PATINAGE SUR GLACE - 31001",null,"BLA","BLAGNAC","BLAGNAC PATINAGE SUR GLACE",31001]
["BORDEAUX - BOR - BORDEAUX SPORTS DE GLACE - 33001",null,"BOR","BORDEAUX","BORDEAUX SPORTS DE GLACE",33001]
["BOULOGNE BILLANCOURT - BOU - BOULOGNE ACBB - 92001",null,"BOU","BOULOGNE BILLANCOURT","BOULOGNE ACBB",92001]
["BREST - BRS - BREST SPORT ET PATINAGE - 29001",null,"BRS","BREST","BREST SPORT ET PATINAGE",29001]
["BRIANCON - BRG - BRIANCON GLISSE 2000 - 5004",null,"BRG","BRIANCON","BRIANCON GLISSE 2000",5004]
["BRIANCON - BRI - BRIANCON LES ESCARTONS - 5003",null,"BRI","BRIANCON","BRIANCON LES ESCARTONS",5003]
["BRIVE - BPC - BRIVE PATINAGE CLUB - 19001",null,"BPC","BRIVE","BRIVE PATINAGE CLUB",19001]
["CAEN - CAE - CAEN ACSEL - 14001",null,"CAE","CAEN","CAEN ACSEL",14001]
[{"$f":"CONCATENATE(D35,\" - \",C35,\" - \",E35,\" - \",F35)","v":"CANNES - CAN - CANNES AZUR PATINAGE - 6002"},null,"CAN","CANNES","CANNES AZUR PATINAGE",6002]
["CASTRES - CAS - CASTRES SPORTS DE GLACE - 81001",null,"CAS","CASTRES","CASTRES SPORTS DE GLACE",81001]
["CASTRES - CAT - CASTRES HOCKEY CLUB PATINAGE - 81002",null,"CAT","CASTRES","CASTRES HOCKEY CLUB PATINAGE",81002]
["CAVEIRAC - CAV - NIMES METROPOLE CAMARGUES - 30002",null,"CAV","CAVEIRAC","NIMES METROPOLE CAMARGUES",30002]
["CERGY PONTOISE - CER - CERGY PONTOISE C.S.G - 95001",null,"CER","CERGY PONTOISE","CERGY PONTOISE C.S.G",95001]
["CHALONS EN CHAMPAGNE - CHL - ASSO DES SPORTS DE GLACE CHALONNAIS - 51001",null,"CHL","CHALONS EN CHAMPAGNE","ASSO DES SPORTS DE GLACE CHALONNAIS",51001]
["CHAMBERY - CHY - CLUB DANSE SUR GLACE CHAMBERY - 73003",null,"CHY","CHAMBERY","CLUB DANSE SUR GLACE CHAMBERY",73003]
["CHAMBERY - CSG - CHAMBERY CSG - 73005",null,"CSG","CHAMBERY","CHAMBERY CSG",73005]
["CHAMONIX - CMX - CHAMONIX CLUB DES SPORTS - 74001",null,"CMX","CHAMONIX","CHAMONIX CLUB DES SPORTS",74001]
["CHAMPIGNY SUR MARNE - CSM - CHAMPIGNY CSG - 94002",null,"CSM","CHAMPIGNY SUR MARNE","CHAMPIGNY CSG",94002]
["CHARLEVILLE MEZIERES - CHM - CHARLEVILLE MEZIERES S.G - 8001",null,"CHM","CHARLEVILLE MEZIERES","CHARLEVILLE MEZIERES S.G",8001]
["CHATELLERAULT - CLT - CHATELLERAULT CSAC - 86002",null,"CLT","CHATELLERAULT","CHATELLERAULT CSAC",86002]
["CHERBOURG - CHE - CLUB CHERBOURGEOIS SPORTS DE GLACE - 50001",null,"CHE","CHERBOURG","CLUB CHERBOURGEOIS SPORTS DE GLACE",50001]
["CHOLET - CHO - ASSO CHOLETAISE DE PATINAGE SUR GLACE - 49003",null,"CHO","CHOLET","ASSO CHOLETAISE DE PATINAGE SUR GLACE",49003]
["CLERMONT FERRAND - CLE - AUVERGNE DANSE SUR GLACE - 63004",null,"CLE","CLERMONT FERRAND","AUVERGNE DANSE SUR GLACE",63004]
["COGNAC - COG - ASS COGNACAISE DES SPORTS DE GLACE - 16002",null,"COG","COGNAC","ASS COGNACAISE DES SPORTS DE GLACE",16002]
["COLOMBES - COL - COLOMBES CSG - 92005",null,"COL","COLOMBES","COLOMBES CSG",92005]
["COMPIEGNE - COM - SKATING CLUB COMPIEGNE OISE - 60001",null,"COM","COMPIEGNE","SKATING CLUB COMPIEGNE OISE",60001]
["COURBEVOIE - COU - CLUB OLYMPIQUE DE COUBEVOIE - 92003",null,"COU","COURBEVOIE","CLUB OLYMPIQUE DE COUBEVOIE",92003]
["COURCHEVEL - COP - COURCHEVEL PATINAGE SPORTS DE GLACE - 73004",null,"COP","COURCHEVEL","COURCHEVEL PATINAGE SPORTS DE GLACE",73004]
["DAMMARIE LES LYS - DAM - DAMMARIE CSG - 77001",null,"DAM","DAMMARIE LES LYS","DAMMARIE CSG",77001]
["DEUIL LA BARRE - DLB - VALLEE MONTMORENCY CSG - 95003",null,"DLB","DEUIL LA BARRE","VALLEE MONTMORENCY CSG",95003]
["DIJON - DIJ - ACADEMIE SPORT DE GLACE DIJON-BOURGOGNE - 21002",null,"DIJ","DIJON","ACADEMIE SPORT DE GLACE DIJON-BOURGOGNE",21002]
["DUNKERQUE - DUN - DUNKERQUE PATINAGE - 59002",null,"DUN","DUNKERQUE","DUNKERQUE PATINAGE",59002]
["ECHIROLLES - ECH - ECHIROLLES CGALE - 38005",null,"ECH","ECHIROLLES","ECHIROLLES CGALE",38005]
["EPINAL - EPI - EPINAL CLUB DE PATINAGE SUR GLACE - 88001",null,"EPI","EPINAL","EPINAL CLUB DE PATINAGE SUR GLACE",88001]
["EVRY - EVR - SPORT CLUB AGORA dit SCA 2000 - 91005",null,"EVR","EVRY","SPORT CLUB AGORA dit SCA 2000",91005]
["FONT ROMEU - FRO - FONT ROMEU CLUB GLACE - 66001",null,"FRO","FONT ROMEU","FONT ROMEU CLUB GLACE",66001]
["FONTENAY - FON - UNION SPORTIVE FONTENAYSIENNE - 94004",null,"FON","FONTENAY","UNION SPORTIVE FONTENAYSIENNE",94004]
["FRANCONVILLE - FRA - FRANCONVILLE S.G - 95004",null,"FRA","FRANCONVILLE","FRANCONVILLE S.G",95004]
["GAP - GAP - GAP AXEL - 5001",null,"GAP","GAP","GAP AXEL",5001]
["GARGES LES GONESSES - GLG - GARGES LES GONESSES CSG - 95005",null,"GLG","GARGES LES GONESSES","GARGES LES GONESSES CSG",95005]
[{"$f":"CONCATENATE(D67,\" - \",C67,\" - \",E67,\" - \",F67)","v":"GRENOBLE - GAC - GRENOBLE AS CEA - 38001"},null,"GAC","GRENOBLE","GRENOBLE AS CEA",38001]
["GRENOBLE - GOM - GRENOBLE SPORTS ENTREPRISES PATINAGE - 38003",null,"GOM","GRENOBLE","GRENOBLE SPORTS ENTREPRISES PATINAGE",38003]
["GRENOBLE - GRE - GRENOBLE ISERE METROPOLE PATINAGE - 38004",null,"GRE","GRENOBLE","GRENOBLE ISERE METROPOLE PATINAGE",38004]
["LA CLUSAZ - LAC - LA CLUSAZ CS - 74008",null,"LAC","LA CLUSAZ","LA CLUSAZ CS",74008]
["LA ROCHE SUR YON - ROC - ASSO. LA ROCHE SUR YON - 85001",null,"ROC","LA ROCHE SUR YON","ASSO. LA ROCHE SUR YON",85001]
["LANESTER - LAT - LANESTER SG - 56003",null,"LAT","LANESTER","LANESTER SG",56003]
["LANGUEUX - LGX - ARMOR SPORTS DE GLACE - 22001",null,"LGX","LANGUEUX","ARMOR SPORTS DE GLACE",22001]
["LE HAVRE - HAC - HAVRE ATLETIC CLUB PATINAGE ARTISTIQUE - 76003",null,"HAC","LE HAVRE","HAVRE ATLETIC CLUB PATINAGE ARTISTIQUE",76003]
["LE HAVRE - HAV - LE HAVRE DANSE SUR GLACE - 76004",null,"HAV","LE HAVRE","LE HAVRE DANSE SUR GLACE",76004]
["LE MANS - MAN - LE MANS SKATING CLUB - 72001",null,"MAN","LE MANS","LE MANS SKATING CLUB",72001]
["LE PERREUX - LPE - LE PERREUX CLUB PATINAGE - 94003",null,"LPE","LE PERREUX","LE PERREUX CLUB PATINAGE",94003]
["LE VESINET - LVE - LE VESINET ICE CLUB - 78001",null,"LVE","LE VESINET","LE VESINET ICE CLUB",78001]
["LES ORRES - LOR - ACADEMIE DE GLACE DES ORRES - 5011",null,"LOR","LES ORRES","ACADEMIE DE GLACE DES ORRES",5011]
["LIMOGES - LIM - LIMOGES SPORTING CLUB DE GLACE - 87001",null,"LIM","LIMOGES","LIMOGES SPORTING CLUB DE GLACE",87001]
["LOUVIERS - LOU - LOUVIERS ICE SKATING CLUB - 27001",null,"LOU","LOUVIERS","LOUVIERS ICE SKATING CLUB",27001]
["LYON - LAL - LYON ALPAD - 69004",null,"LAL","LYON","LYON ALPAD",69004]
["LYON - LAN - ASSOCIATION NEIGE ET GLACE ENSEIGNANTS - 69003",null,"LAN","LYON","ASSOCIATION NEIGE ET GLACE ENSEIGNANTS",69003]
["LYON - LGP - LYON GLACE PATINAGE - 69007",null,"LGP","LYON","LYON GLACE PATINAGE",69007]
["LYON - LPT - LYON ASPTT PATINAGE - 69005",null,"LPT","LYON","LYON ASPTT PATINAGE",69005]
["LYON - LSG - LYON CSG - 69001",null,"LSG","LYON","LYON CSG",69001]
["MANTES LA JOLIE - MLJ - MANTES AS MANTAISE - 78002",null,"MLJ","MANTES LA JOLIE","MANTES AS MANTAISE",78002]
["MARSEILLE - MAR - MARSEILLE PHOCEENNE S.G - 13001",null,"MAR","MARSEILLE","MARSEILLE PHOCEENNE S.G",13001]
["MEGEVE - MEG - MEGEVE CLUB DES SPORTS - 74003",null,"MEG","MEGEVE","MEGEVE CLUB DES SPORTS",74003]
["MERIBEL - MER - CLUB PATINAGE ART ET DANSE S/GLACE MERIBEL - 73008",null,"MER","MERIBEL","CLUB PATINAGE ART ET DANSE S/GLACE MERIBEL",73008]
["MEUDON - MEA - MEUDON AMPR - 92008",null,"MEA","MEUDON","MEUDON AMPR",92008]
["MEUDON - MEU - MEUDON C.M.P.A.D - 92004",null,"MEU","MEUDON","MEUDON C.M.P.A.D",92004]
["MONETEAU - MNT - FIGURE LIBRE - 89001",null,"MNT","MONETEAU","FIGURE LIBRE",89001]
["MONTPELLIER - MON - MONTPELLIER AGGLOMERATION PATINAGE - 34001",null,"MON","MONTPELLIER","MONTPELLIER AGGLOMERATION PATINAGE",34001]
["MONTPELLIER - MPE - ICE ET ROLLER SCHOOL MONTPELLIER - 34008",null,"MPE","MONTPELLIER","ICE ET ROLLER SCHOOL MONTPELLIER",34008]
["MORZINE - MAV - CL DANSE MORZINE AVORIAZ - 74016",null,"MAV","MORZINE","CL DANSE MORZINE AVORIAZ",74016]
["MORZINE - MOR - MORZINE C.S.G - 74006",null,"MOR","MORZINE","MORZINE C.S.G",74006]
["NANCY - NCY - NANCY CPHNL - 54001",null,"NCY","NANCY","NANCY CPHNL",54001]
[{"$f":"CONCATENATE(D99,\" - \",C99,\" - \",E99,\" - \",F99)","v":"NANTES - NAN - NANTES LEO LAGRANGE - 44001"},null,"NAN","NANTES","NANTES LEO LAGRANGE",44001]
["NANTES - NSG - NANTES SPORTS GLACE - 44002",null,"NSG","NANTES","NANTES SPORTS GLACE",44002]
["NARBONNE - NAR - NARBONE PATINAGE EN LIBERTE - 11001",null,"NAR","NARBONNE","NARBONE PATINAGE EN LIBERTE",11001]
["NEUILLY SUR MARNE - NEU - NEUILLY PATINAGE ARTISTIQUE - 93002",null,"NEU","NEUILLY SUR MARNE","NEUILLY PATINAGE ARTISTIQUE",93002]
["NICE - GSF - GLACE SANS FRONTIERE - 6004",null,"GSF","NICE","GLACE SANS FRONTIERE",6004]
["NICE - NBA - ASSOCIATION NICE BAIE DES ANGES - 6003",null,"NBA","NICE","ASSOCIATION NICE BAIE DES ANGES",6003]
["NICE - NIC - NICE COTE D'AZUR PATINAGE - 6001",null,"NIC","NICE","NICE COTE D'AZUR PATINAGE",6001]
["NIMES - NIM - CLUB NIMOIS DES SPORTS DE GLACE - 30001",null,"NIM","NIMES","CLUB NIMOIS DES SPORTS DE GLACE",30001]
["NIORT - NIA - NIORTGLACE - 79002",null,"NIA","NIORT","NIORTGLACE",79002]
["NIORT - NIO - NIORT PATIGLACE AS - 79001",null,"NIO","NIORT","NIORT PATIGLACE AS",79001]
["ORLEANS - ORL - ASSOCIATION SPORTIVE ORLEANS DANSE - 45003",null,"ORL","ORLEANS","ASSOCIATION SPORTIVE ORLEANS DANSE",45003]
["PARIS - PAR - PARIS CPAP - 75001",null,"PAR","PARIS","PARIS CPAP",75001]
["PARIS - PCF - CLUB France - 75007",null,"PCF","PARIS","CLUB France",75007]
["PARIS - PFV - PARIS CLUB FRANCAIS VOLANTS - 75004",null,"PFV","PARIS","PARIS CLUB FRANCAIS VOLANTS",75004]
["PARIS - PGR - GLACE ET ROLLER IN LINE DE PARIS - 75006",null,"PGR","PARIS","GLACE ET ROLLER IN LINE DE PARIS",75006]
["PARIS - POC - PARIS OLYMPIQUE CLUB - 75003",null,"POC","PARIS","PARIS OLYMPIQUE CLUB",75003]
["PAU - PAU - BEARN SPORTS DE GLACE - 64003",null,"PAU","PAU","BEARN SPORTS DE GLACE",64003]
["POITIERS - POI - POITEVIN STADE CLUB DE GLACE - 86001",null,"POI","POITIERS","POITEVIN STADE CLUB DE GLACE",86001]
["PRALOGNAN - PRA - PRALOGNAN ARTISTIQUE CLUB - 73007",null,"PRA","PRALOGNAN","PRALOGNAN ARTISTIQUE CLUB",73007]
["REIMS - REI - REIMS AVENIR PATINAGE - 51003",null,"REI","REIMS","REIMS AVENIR PATINAGE",51003]
["REIMS - RMS - REIMS CPAR - 51004",null,"RMS","REIMS","REIMS CPAR",51004]
["RENNES - RED - RENNES DANSE ET PATINAGE SUR GLACE  - 35001",null,"RED","RENNES","RENNES DANSE ET PATINAGE SUR GLACE ",35001]
["RENNES - REP - RENNES CSG - 35002",null,"REP","RENNES","RENNES CSG",35002]
["REZE - REZ - CLUB DE PATINAGE SUR GLACE REZEEN - 44005",null,"REZ","REZE","CLUB DE PATINAGE SUR GLACE REZEEN",44005]
["ROANNE - ROA - ROANNAIS PATINAGE ARTISTIQUE - 42002",null,"ROA","ROANNE","ROANNAIS PATINAGE ARTISTIQUE",42002]
["ROUEN - ROE - ESPAR - 76005",null,"ROE","ROUEN","ESPAR",76005]
["ROUEN - ROU - ROUEN OLYMPIC CLUB - 76001",null,"ROU","ROUEN","ROUEN OLYMPIC CLUB",76001]
["SAINT EGREVE - SEG - ST EGREVE USSE - 38007",null,"SEG","SAINT EGREVE","ST EGREVE USSE",38007]
["SAINT ETIENNE - STE - STEPHANOIS SPORTS DE GLACE - 42001",null,"STE","SAINT ETIENNE","STEPHANOIS SPORTS DE GLACE",42001]
["SAINT GERVAIS - GER - SAINT GERVAIS DANSE SUR GLACE - 74009",null,"GER","SAINT GERVAIS","SAINT GERVAIS DANSE SUR GLACE",74009]
["SAINT OUEN - SOU - CLUB DES SPORTS DE GLACE DE SAINT OUEN - 93001",null,"SOU","SAINT OUEN","CLUB DES SPORTS DE GLACE DE SAINT OUEN",93001]
["SAINT PIERRE ET MIQUELON - SPM - ST PIERRE ET MIQUELON PATINAGE - 97001",null,"SPM","SAINT PIERRE ET MIQUELON","ST PIERRE ET MIQUELON PATINAGE",97001]
[{"$f":"CONCATENATE(D131,\" - \",C131,\" - \",E131,\" - \",F131)","v":"SAINT YRIEIX - SYR - ASSOCIATION EXPRESSIONS - 16001"},null,"SYR","SAINT YRIEIX","ASSOCIATION EXPRESSIONS",16001]
["SERRE CHEVALIER - SER - CPA SERRE CHEVALIER VALLEE - 5002",null,"SER","SERRE CHEVALIER","CPA SERRE CHEVALIER VALLEE",5002]
["STRASBOURG - STR - STRASBOURG ALSACE C.S.G - 67001",null,"STR","STRASBOURG","STRASBOURG ALSACE C.S.G",67001]
["TOULON LA GARDE - TLA - LA GARDE SILVER SKATE - 83001",null,"TLA","TOULON LA GARDE","LA GARDE SILVER SKATE",83001]
["TOULOUSE - TAR - ART ROLL'ICE TOULOUSE - 31004",null,"TAR","TOULOUSE","ART ROLL'ICE TOULOUSE",31004]
["TOULOUSE - TPA - TOULOUSE CLUB PATINAGE - 31003",null,"TPA","TOULOUSE","TOULOUSE CLUB PATINAGE",31003]
["TOULOUSE - TSG - TOULOUSE SPORTS DE GLACE - 31002",null,"TSG","TOULOUSE","TOULOUSE SPORTS DE GLACE",31002]
["TOURS - TOU - CLUB MULTI-PATINAGE TOURS - 37002",null,"TOU","TOURS","CLUB MULTI-PATINAGE TOURS",37002]
["TROYES - TRO - PATINAGE ARTISTIQUE DE TROYES - 10001",null,"TRO","TROYES","PATINAGE ARTISTIQUE DE TROYES",10001]
["VALENCE - VLC - VALENCE PATINAGE ARTISTIQUE - 26001",null,"VLC","VALENCE","VALENCE PATINAGE ARTISTIQUE",26001]
["VALENCIENNES - VAL - SKATE HAINAUT VALENCIENNES CLUB - 59004",null,"VAL","VALENCIENNES","SKATE HAINAUT VALENCIENNES CLUB",59004]
["VALLOIRE - VAP - VAL PATIN - 73010",null,"VAP","VALLOIRE","VAL PATIN",73010]
["VANNES - VAN - VANNES ICE CLUB - 56001",null,"VAN","VANNES","VANNES ICE CLUB",56001]
["VILLARD DE LANS - VLA - VILLARD DE LANS DANSE ET ARTISTIQUE - 38008",null,"VLA","VILLARD DE LANS","VILLARD DE LANS DANSE ET ARTISTIQUE",38008]
["VILLARD DE LANS - VLP - VILLARD DE LANS PATINAGE - 38016",null,"VLP","VILLARD DE LANS","VILLARD DE LANS PATINAGE",38016]
["VILLENAVE D'ORNON - VIL - SKATING CLUB VILLENAVE D'ORNON - 33002",null,"VIL","VILLENAVE D'ORNON","SKATING CLUB VILLENAVE D'ORNON",33002]
["VIRY CHATILLON - VIR - VIRY OCDV - 91003",null,"VIR","VIRY CHATILLON","VIRY OCDV",91003]
["VITRY SUR SEINE - VIT - VITRY ESV PATINAGE - 94001",null,"VIT","VITRY SUR SEINE","VITRY ESV PATINAGE",94001]
["WASQUEHAL - WDP - CLUB DE PATINAGE SUR GLACE NORD - 59008",null,"WDP","WASQUEHAL","CLUB DE PATINAGE SUR GLACE NORD",59008]
["WASQUEHAL - WQL - ENTENTE PATINAGE WASQUEHAL LILLE METROPOLE - 59007",null,"WQL","WASQUEHAL","ENTENTE PATINAGE WASQUEHAL LILLE METROPOLE",59007]
["WASQUEHAL - WQM - ENTENTE PATINAGE WASQUEHAL METROPOLE - 59001",null,"WQM","WASQUEHAL","ENTENTE PATINAGE WASQUEHAL METROPOLE",59001]